bitfinex/quotes_ETHUSD_20250722
["timestamp","ask_amount","ask_price","bid_price","bid_amount"]
[1753192121962,0.136,3674.1,3673.5,0.136]
[1753192122160,3.20030092,3674.0,3672.5,4.425]
[1753192122416,0.136,3673.5,3672.9,0.136]
[1753192122623,0.02717186,3673.4,3672.9,0.136]
[1753192122767,0.4513,3673.4,3672.9,0.136]
[1753192122963,2.72241676,3673.3,3672.9,0.136]
[1753192123272,0.02717186,3673.2,3672.9,0.136]
[1753192123667,2.74964086,3673.2,3672.9,0.136]
[1753192123861,0.02717186,3673.2,3672.9,0.136]
[1753192124095,2.72258174,3673.0,3672.6,0.8161]
[1753192124372,0.02717186,3672.9,3672.6,0.9521]
[1753192124682,0.02717186,3672.9,3672.6,0.137]
[1753192124683,2.72279249,3672.7,3672.6,0.137]
[1753192124877,0.136,3673.3,3672.6,0.137]
[1753192125300,0.16317186,3673.3,3672.6,0.137]
[1753192125625,0.47847186,3673.2,3672.6,0.001]
[1753192125770,0.136,3672.9,3672.6,0.001]
[1753192126081,2.72279249,3672.7,3672.6,0.001]
[1753192126869,2.72278008,3672.8,3672.6,0.001]
[1753192127094,2.72279249,3672.7,3672.6,0.001]
[1753192127287,0.136,3672.9,3672.6,0.001]
[1753192127894,2.72279249,3672.7,3672.6,0.001]
[1753192128216,3.3556409,3672.7,3672.6,0.001]
[1753192128508,4.6335409,3672.7,3672.6,0.001]
[1753192128717,4.60636904,3672.7,3672.6,0.001]
[1753192128880,4.74236904,3672.7,3672.6,0.001]
[1753192129072,5.74236904,3672.7,3672.6,0.001]
[1753192130625,5.13669249,3672.7,3672.6,0.001]
[1753192130921,1.5841,3672.7,3672.6,0.001]
[1753192131117,3.72279249,3672.7,3672.6,0.001]
[1753192131820,1.0,3672.7,3672.6,0.001]
[1753192131990,1.0,3672.7,3672.6,3.27386663]
[1753192132194,1.0,3672.7,3672.6,3.40986663]
[1753192132393,1.0,3672.7,3672.6,0.687]
[1753192132797,1.0,3672.7,3672.6,0.137]
[1753192133002,4.17089249,3672.7,3672.6,0.001]
[1753192133203,5.02341882,3672.7,3672.6,0.001]
[1753192133424,4.99624696,3672.7,3672.6,0.001]
[1753192133734,1.0,3672.7,3672.6,0.001]
[1753192135217,4.17089249,3672.7,3672.6,0.001]
[1753192135447,5.10786435,3672.7,3672.6,0.001]
[1753192135944,5.08069249,3672.7,3672.6,0.001]
[1753192136121,6.30173227,3672.7,3672.6,0.001]
[1753192137743,10.70473227,3672.7,3672.6,0.001]
[1753192138913,10.70473227,3672.7,3672.6,1e-08]
[1753192138914,43.56873227,3672.7,3672.6,1e-08]
[1753192139113,13.56973227,3672.7,3672.6,1e-08]
[1753192139339,10.56873227,3672.7,3672.6,1e-08]
[1753192139523,6.16573227,3672.7,3672.6,1e-08]
[1753192139726,10.56973227,3672.7,3672.6,1e-08]
[1753192140319,6.16573227,3672.7,3672.6,1e-08]
[1753192140514,10.56773227,3672.7,3672.6,1e-08]
[1753192140952,1.4481,3672.7,3672.6,1e-08]
[1753192141448,8.57089249,3672.7,3672.6,1e-08]
[1753192141649,1.0,3672.7,3672.6,1e-08]
[1753192142064,1.0,3672.7,3672.6,2.72286664]
[1753192142214,1.0,3672.7,3672.6,1e-08]
[1753192142421,1.4481,3672.7,3672.6,1e-08]
[1753192142624,4.34287435,3672.7,3672.6,1e-08]
[1753192142829,8.74287435,3672.7,3672.6,1e-08]
[1753192143027,8.71570249,3672.7,3672.6,1e-08]
[1753192143332,11.71670249,3672.7,3672.6,1e-08]
[1753192143776,4.31570249,3672.7,3672.6,1e-08]
[1753192143988,8.71670249,3672.7,3672.6,1e-08]
[1753192144126,4.31570249,3672.7,3672.6,1e-08]
[1753192144321,4.34287435,3672.7,3672.6,1e-08]
[1753192144875,8.12179249,3672.7,3672.6,1e-08]
[1753192145960,8.56989249,3672.7,3672.6,1e-08]
[1753192146528,4.17089249,3672.7,3672.6,1e-08]
[1753192146829,8.56989249,3672.7,3672.6,1e-08]
[1753192147865,11.56989249,3672.7,3672.6,1e-08]
[1753192148045,12.99914893,3672.7,3672.6,1e-08]
[1753192148625,8.60014893,3672.7,3672.6,1e-08]
[1753192148931,11.56989249,3672.7,3672.6,1e-08]
[1753192150571,12.36129249,3672.7,3672.6,1e-08]
[1753192150727,37.96229249,3672.7,3672.6,1e-08]
[1753192150928,42.36129249,3672.7,3672.6,1e-08]
[1753192151167,37.96229249,3672.7,3672.6,1e-08]
[1753192151351,15.06038425,3672.7,3672.6,1e-08]
[1753192151725,10.66138425,3672.7,3672.6,1e-08]
[1753192151927,12.36129249,3672.7,3672.6,1e-08]
[1753192152156,7.96229249,3672.7,3672.6,1e-08]
[1753192152463,42.49992936,3672.7,3672.6,1e-08]
[1753192152663,51.46982372,3672.7,3672.6,1e-08]
[1753192153382,52.04722046,3672.7,3672.6,1e-08]
[1753192153529,50.34731222,3672.7,3672.6,1e-08]
[1753192153731,54.74631222,3672.7,3672.6,1e-08]
[1753192154445,50.34731222,3672.7,3672.6,1e-08]
[1753192154983,54.74731222,3672.7,3672.6,1e-08]
[1753192155128,50.34731222,3672.7,3672.6,1e-08]
[1753192155328,41.37741786,3672.7,3672.6,1e-08]
[1753192155571,15.20002112,3672.7,3672.6,1e-08]
[1753192155778,10.80002112,3672.7,3672.6,1e-08]
[1753192155981,3.72279249,3672.7,3672.6,1e-08]
[1753192156361,8.12279249,3672.7,3672.6,1e-08]
[1753192156669,8.70894163,3672.7,3672.6,1e-08]
[1753192157188,1.0,3672.7,3672.6,1e-08]
[1753192158236,3.74996435,3672.7,3672.6,1e-08]
[1753192158478,9.66522522,3672.7,3672.6,1e-08]
[1753192158625,13.40585336,3672.7,3672.6,1e-08]
[1753192158830,43.40585336,3672.7,3672.6,1e-08]
[1753192159238,13.40485336,3672.7,3672.6,1e-08]
[1753192159443,43.40485336,3672.7,3672.6,1e-08]
[1753192160832,2.72405339,3671.0,3670.9,0.8034]
[1753192161032,0.136,3670.9,3669.4,0.79919606]
[1753192161292,2.72486988,3669.9,3669.4,1.63722778]
[1753192161468,2.72486988,3669.9,3669.4,0.79919606]
[1753192161776,0.136,3670.0,3669.5,1.2402]
[1753192161956,4.4,3670.6,3669.6,0.46105092]
[1753192162151,2.86050798,3670.4,3669.7,3.68091839]
[1753192162351,2.72457292,3670.3,3669.8,0.4338]
[1753192162673,2.72479564,3670.0,3669.9,0.25177233]
[1753192162848,2.72472766,3670.1,3669.9,0.25177233]
[1753192163053,2.72472139,3670.1,3670.0,0.25177233]
[1753192164682,7.12472139,3670.1,3670.0,0.25177233]
[1753192164977,2.72516691,3669.5,3669.4,0.79919606]
[1753192165156,2.72516691,3669.5,3669.4,1.05088629]
[1753192165353,7.15233877,3669.5,3669.4,0.25169023]
[1753192165564,8.73467252,3669.5,3669.4,0.25169023]
[1753192165881,2.72516691,3669.5,3669.4,0.25169023]
[1753192166044,2.72531545,3669.3,3669.2,0.004]
[1753192166241,7.15248731,3669.3,3669.2,0.004]
[1753192166465,7.12531545,3669.3,3669.2,0.004]
[1753192166774,7.12531545,3669.3,3668.7,0.004]
[1753192166775,2.72568687,3668.8,3668.7,0.004]
[1753192166982,7.15385873,3668.8,3668.7,0.004]
[1753192167178,7.12668687,3668.8,3668.7,0.004]
[1753192167382,8.81246911,3668.8,3668.7,0.004]
[1753192167606,8.81246911,3668.8,3667.0,7.12801494]
[1753192167607,3.0,3668.6,3666.9,0.8226]
[1753192167740,3.0,3668.4,3666.9,0.8226]
[1753192167945,3.0,3668.1,3666.9,0.8226]
[1753192168141,0.02717186,3668.0,3667.0,0.4338]
[1753192168449,3.0,3668.7,3667.3,0.8079]
[1753192168767,2.72597998,3668.5,3667.4,0.4338]
[1753192168978,4.402,3668.4,3667.7,2.72650026]
[1753192169180,2.72568919,3668.8,3667.9,0.7649]
[1753192169392,0.428,3669.4,3668.0,0.55]
[1753192169595,4.403,3669.3,3668.5,2.72586146]
[1753192169757,0.7881,3670.0,3669.2,2.72532328]
[1753192169961,4.405,3670.0,3668.8,0.55]
[1753192170162,0.02717186,3670.9,3668.6,1.03399199]
[1753192170163,0.428,3670.9,3669.5,0.7649]
[1753192170370,2.72421242,3670.8,3669.5,0.7649]
[1753192170593,2.72400754,3671.1,3669.7,0.55]
[1753192170811,3.44588444,3671.1,3669.8,0.4338]
[1753192171119,0.86026394,3671.1,3670.5,0.806]
[1753192171263,7.13005339,3671.0,3670.5,0.806]
[1753192171460,0.72185273,3671.0,3670.5,0.806]
[1753192171685,0.72185273,3671.1,3671.0,2.72405339]
[1753192171891,0.72185273,3671.3,3671.2,3.27390499]
[1753192172083,0.72185273,3671.8,3671.3,3.47773079]
[1753192172282,0.72185273,3671.8,3671.4,0.4338]
[1753192172493,0.72185273,3672.0,3671.3,0.7539]
[1753192172702,0.02717186,3671.9,3671.3,0.7539]
[1753192172898,3.29700514,3672.4,3671.3,0.7539]
[1753192173063,0.02717186,3672.3,3671.3,0.7539]
[1753192173262,2.72345988,3671.8,3669.8,1.2164]
[1753192173463,3.0,3671.6,3669.8,1.2164]
[1753192173667,0.02717186,3671.5,3669.8,3.94132868]
[1753192173903,2.72420267,3670.8,3669.8,3.94132868]
[1753192174198,3.0,3671.6,3669.9,1.59813287]
[1753192174503,7.12989672,3671.3,3669.9,1.48193287]
[1753192174800,2.72439475,3670.6,3669.8,0.7826]
[1753192174974,4.404,3671.0,3669.8,1.2164]
[1753192175301,0.45517186,3671.3,3669.9,2.72485315]
[1753192175500,5.72405339,3671.0,3669.8,1.2164]
[1753192175702,2.72439202,3670.6,3669.8,3.94133747]
[1753192176004,2.72439202,3670.6,3669.0,2.72547597]
[1753192176005,0.7531,3670.1,3667.4,0.7658]
[1753192176304,3.0,3669.7,3667.8,4.0]
[1753192176526,3.0,3669.2,3667.5,0.4338]
[1753192176710,2.72623101,3668.1,3667.4,0.7658]
[1753192177018,4.422,3668.7,3667.4,0.7658]
[1753192177218,2.72677148,3667.4,3666.7,3.53492414]
[1753192177378,0.428,3668.4,3667.1,2.72689075]
[1753192177579,2.72659649,3667.6,3666.8,3.16096244]
[1753192177798,2.7264472,3667.8,3667.0,2.72702254]
[1753192177996,2.72665208,3667.6,3666.8,3.83055556]
[1753192178196,2.72634689,3668.0,3666.8,1.10339155]
[1753192178395,2.72634689,3668.0,3667.8,0.001]
[1753192178594,2.72635568,3667.9,3667.8,0.001]
[1753192178822,1.2266,3668.9,3667.8,0.001]
[1753192179023,3.0,3668.7,3667.8,0.001]
[1753192179223,2.72635568,3667.9,3667.8,0.001]
[1753192179601,2.75352754,3667.9,3667.8,0.001]
[1753192179815,3.15435568,3667.9,3667.8,0.001]
[1753192180141,6.70233444,3667.9,3667.8,0.001]
[1753192181098,10.69633444,3667.9,3667.8,0.001]
[1753192181299,2.72717355,3666.8,3666.7,0.8077]
[1753192181501,0.428,3667.5,3666.7,0.8077]
[1753192181699,2.72700637,3667.1,3666.7,0.8077]
[1753192182024,4.423,3667.7,3666.7,0.8077]
[1753192182187,2.72695854,3667.1,3666.7,0.8077]
[1753192182387,3.428,3668.0,3666.7,0.8077]
[1753192182388,2.72702671,3667.0,3666.7,0.8077]
[1753192182588,2.72717355,3666.8,3666.7,0.8077]
[1753192182797,2.72730353,3666.7,3665.8,2.72790446]
[1753192183028,2.72707215,3667.0,3665.9,0.39769045]
[1753192183213,4.426,3667.3,3666.0,0.02727768]
[1753192183394,2.72695045,3667.1,3666.0,0.4338]
[1753192183589,0.02717186,3667.2,3666.0,0.4338]
[1753192183794,4.423,3667.2,3666.1,0.57727694]
[1753192184000,4.423,3667.2,3666.1,0.55]
[1753192184199,2.72726473,3666.7,3666.1,0.55]
[1753192184411,2.72718442,3666.8,3666.1,0.37115619]
[1753192184628,2.72695801,3667.1,3666.1,0.37115619]
[1753192184829,2.72719095,3666.8,3666.1,3.09880097]
[1753192185138,4.423,3667.2,3666.1,0.37115619]
[1753192185431,2.72760275,3666.3,3665.7,0.8152]
[1753192185634,4.851,3667.2,3666.0,2.72772974]
[1753192185802,4.423,3667.2,3665.9,0.02727843]
[1753192186004,4.423,3667.2,3666.1,0.136]
[1753192186005,0.136,3666.7,3666.1,0.136]
[1753192186216,2.86326228,3666.7,3666.1,0.136]
[1753192186423,0.136,3666.7,3666.2,2.72759474]
[1753192186616,0.136,3666.7,3666.3,0.4338]
[1753192187054,0.136,3666.7,3666.1,0.136]
[1753192187358,0.136,3666.7,3666.2,2.72756076]
[1753192187531,0.136,3666.7,3666.3,0.4583]
[1753192187700,0.136,3667.1,3666.7,0.7624]
[1753192187902,1.0,3667.6,3666.8,0.48557173]
[1753192188110,1.0,3667.6,3666.8,3.34872751]
[1753192188338,2.72702481,3667.0,3666.9,0.136]
[1753192188636,3.16293266,3667.0,3665.8,0.7552]
[1753192188840,2.72709918,3666.9,3665.9,0.53014861]
[1753192189047,2.7277107,3666.1,3665.8,0.7552]
[1753192189250,0.136,3666.3,3665.8,0.7552]
[1753192189546,2.72689417,3667.2,3665.9,0.4583]
[1753192189748,0.136,3666.5,3666.0,0.57727768]
[1753192189913,2.7271572,3666.9,3666.1,3.37862152]
[1753192190111,4.419,3667.2,3666.4,2.72739952]
[1753192190308,2.72707679,3667.0,3666.5,0.136]
[1753192190537,0.136,3667.1,3666.5,0.136]
[1753192190721,2.72722601,3666.8,3666.5,0.136]
[1753192190934,2.72695045,3667.1,3666.2,2.72756298]
[1753192191134,0.4359,3667.4,3666.2,0.54553317]
[1753192191135,0.136,3666.8,3666.2,0.54553317]
[1753192191334,2.86318549,3666.8,3666.2,2.72757197]
[1753192191544,4.419,3667.4,3666.3,0.02727545]
[1753192191746,4.419,3667.4,3666.4,0.136]
[1753192191747,2.7273257,3666.6,3666.4,0.136]
[1753192192058,0.136,3667.0,3666.4,0.136]
[1753192192255,2.86302794,3667.0,3666.4,0.136]
[1753192192459,0.136,3667.0,3666.4,0.136]
[1753192192623,0.136,3667.0,3666.5,2.72734046]
[1753192192822,0.136,3667.0,3666.4,0.136]
[1753192193156,0.136,3667.4,3666.7,0.136]
[1753192193355,0.136,3667.4,3666.7,0.32684]
[1753192193564,2.72689948,3667.2,3666.7,0.32684]
[1753192193723,0.136,3667.4,3666.7,0.32684]
[1753192194063,2.8632708,3666.7,3665.9,0.9364]
[1753192194263,3.16281086,3667.2,3665.9,0.9364]
[1753192194264,0.4359,3667.2,3666.1,2.72769428]
[1753192194562,2.86328746,3666.7,3666.1,0.136]
[1753192194860,2.72749033,3666.4,3666.1,0.55742714]
[1753192195190,0.136,3666.4,3665.9,0.8004]
[1753192195363,2.72788863,3665.9,3665.4,0.8065]
[1753192195565,0.136,3665.9,3665.4,0.8065]
[1753192195766,0.136,3665.9,3665.5,2.72809544]
[1753192195926,2.86385504,3665.9,3665.5,0.63988704]
[1753192196262,0.136,3665.9,3665.5,0.63988704]
[1753192196438,0.136,3665.9,3665.4,0.8065]
[1753192196640,2.86391622,3665.9,3665.4,0.8065]
[1753192196838,0.136,3665.9,3665.5,2.72811427]
[1753192197240,0.136,3665.9,3665.5,2.72811857]
[1753192197446,0.136,3665.9,3665.6,0.4583]
[1753192197624,0.136,3665.9,3665.4,0.8065]
[1753192198329,2.86387866,3665.9,3665.4,1.34195]
[1753192198542,2.72792179,3665.8,3665.4,0.8065]
[1753192198747,2.7279175,3665.8,3665.4,0.8065]
[1753192198957,2.8638589,3665.9,3665.4,0.8065]
[1753192199489,0.136,3665.9,3665.5,2.72811079]
[1753192199649,0.136,3665.9,3665.7,2.7279899]
[1753192199845,0.136,3665.9,3665.5,0.82536108]
[1753192200046,0.136,3665.9,3665.4,0.8065]
[1753192200248,4.8439,3666.7,3665.4,0.8065]
[1753192200449,2.72799192,3665.7,3665.4,0.8065]
[1753192200756,0.136,3666.0,3665.4,0.8075]
[1753192200757,0.136,3665.8,3665.4,0.8075]
[1753192200959,0.136,3665.8,3665.5,2.72814077]
[1753192201155,4.408,3666.8,3665.6,2.72806419]
[1753192201384,0.136,3666.2,3665.6,0.5943]
[1753192201586,0.136,3666.2,3665.6,0.136]
[1753192201786,7.408,3666.7,3665.4,0.8075]
[1753192201990,0.136,3665.9,3665.4,3.53570898]
[1753192202161,4.41,3666.7,3665.5,1.0083]
[1753192202362,0.002,3667.1,3665.5,0.5772814]
[1753192202565,0.136,3666.7,3666.1,0.136]
[1753192202967,2.86327007,3666.7,3666.1,0.136]
[1753192203169,0.4359,3667.0,3665.8,0.822]
[1753192203362,0.136,3666.3,3665.8,0.822]
[1753192203563,0.136,3666.3,3666.2,2.72761987]
[1753192203755,0.136,3666.8,3666.2,0.5943]
[1753192203983,2.72724793,3666.7,3666.2,0.136]
[1753192204182,0.136,3666.8,3666.2,0.136]
[1753192204369,2.72764136,3666.2,3665.8,0.822]
[1753192204698,0.136,3666.4,3665.8,0.958]
[1753192204869,0.136,3666.4,3665.8,1.1088]
[1753192205075,2.72769341,3666.2,3665.8,1.1088]
[1753192205394,0.136,3666.4,3665.8,1.1088]
[1753192205702,0.002,3667.1,3665.9,0.57727843]
[1753192205865,0.136,3666.8,3666.2,2.86356335]
[1753192206059,0.136,3666.8,3666.2,3.48041807]
[1753192206265,0.136,3666.8,3666.2,0.75285472]
[1753192206457,0.136,3666.8,3666.2,0.136]
[1753192206661,2.86317447,3666.8,3666.2,0.136]
[1753192206862,0.136,3666.8,3666.2,0.136]
[1753192207096,2.72745531,3666.5,3665.8,7.95690495]
[1753192207299,2.72766757,3666.2,3665.8,0.822]
[1753192207467,2.86347234,3666.4,3665.8,3.54986966]
[1753192207662,2.727601,3666.3,3665.8,0.822]
[1753192207909,2.72762479,3666.2,3665.8,0.822]
[1753192208204,0.136,3666.4,3665.9,4.71]
[1753192208577,0.002,3667.1,3666.0,0.02727768]
[1753192208769,0.136,3666.6,3666.0,0.136]
[1753192208970,0.136,3666.6,3666.1,2.72762549]
[1753192209166,0.136,3666.6,3666.1,2.72769291]
[1753192209370,0.136,3666.6,3666.2,0.4583]
[1753192209571,2.7275517,3666.3,3666.1,0.89627076]
[1753192209813,0.136,3666.6,3666.0,0.136]
[1753192210108,0.002,3667.1,3665.9,4.71]
[1753192210109,0.136,3666.1,3665.9,4.71]
[1753192210627,0.002,3667.1,3666.1,0.8061]
[1753192210908,0.002,3667.1,3667.0,4.08312481]
[1753192211066,1.0,3667.6,3667.5,3.52115303]
[1753192211262,1.0,3667.6,3667.5,5.15424262]
[1753192211800,1.0,3667.6,3667.5,9.86424262]
[1753192211985,0.002,3668.6,3668.5,3.50200977]
[1753192212394,0.002,3668.6,3668.5,4.53756886]
[1753192212762,0.002,3668.6,3668.5,5.1851]
[1753192212967,0.002,3668.6,3668.5,9.43781977]
[1753192213166,0.002,3668.6,3668.5,5.02881977]
[1753192213406,0.002,3668.6,3668.5,9.43781977]
[1753192213807,0.002,3668.6,3668.5,6.16291]
[1753192214017,0.002,3668.6,3668.5,0.7761]
[1753192214179,0.002,3668.6,3667.9,4.411]
[1753192214180,0.4379,3668.6,3667.9,4.411]
[1753192214381,2.72603801,3668.4,3667.6,0.7932]
[1753192214583,2.72593195,3668.5,3667.7,7.13749315]
[1753192214817,0.002,3668.6,3667.7,4.411]
[1753192215007,0.002,3668.6,3667.9,2.7263039]
[1753192215214,2.7261025,3668.3,3667.6,0.7932]
[1753192215528,2.72619152,3668.2,3667.6,0.7932]
[1753192215813,2.72590977,3668.5,3667.6,1.14519158]
[1753192216014,2.72785557,3668.6,3667.8,2.72642527]
[1753192216195,0.002,3668.6,3667.7,4.413]
[1753192216395,2.72784654,3668.6,3667.9,2.72633568]
[1753192216580,0.002,3668.6,3667.7,4.413]
[1753192216782,0.4379,3668.6,3667.7,4.413]
[1753192217012,2.72612125,3668.3,3667.7,4.413]
[1753192217222,0.002,3668.6,3667.8,2.75362519]
[1753192217381,2.72591963,3668.5,3667.8,2.72642512]
[1753192217585,2.72605839,3668.3,3667.7,4.413]
[1753192217789,2.72613727,3668.2,3667.6,0.7932]
[1753192217995,2.72613727,3668.2,3667.7,4.413]
[1753192218193,2.72633154,3668.0,3667.6,0.7932]
[1753192218505,2.72633154,3668.0,3666.7,3.0]
[1753192218506,0.4286,3667.9,3667.1,0.7947]
[1753192218884,8.1826,3668.5,3667.1,0.7947]
[1753192219085,17.22643015,3667.8,3667.1,0.7947]
[1753192219314,2.72683377,3667.3,3667.1,0.7947]
[1753192219522,0.4286,3667.7,3666.7,5.2167]
[1753192219708,2.72700081,3667.1,3666.1,5.5147]
[1753192219907,0.8224,3667.6,3666.1,5.5147]
[1753192219908,2.72709516,3667.0,3666.2,6.72760208]
[1753192220110,2.72725024,3666.7,3666.1,0.8047]
[1753192220316,0.02717186,3667.3,3666.1,0.8047]
[1753192220513,2.72715235,3666.9,3666.2,2.72756255]
[1753192220716,0.4286,3667.2,3666.1,3.53234022]
[1753192220896,2.86323572,3666.8,3666.1,3.66834022]
[1753192221225,0.136,3666.8,3666.2,2.7276109]
[1753192221403,0.136,3666.8,3666.1,2.02131734]
[1753192221604,0.136,3666.8,3666.2,2.72755277]
[1753192222011,5.657,3667.6,3666.3,0.02727545]
[1753192222213,2.86296358,3667.1,3666.5,0.136]
[1753192222414,0.136,3667.1,3666.6,2.72732056]
[1753192222617,0.136,3667.1,3666.5,0.136]
[1753192222822,0.136,3667.5,3667.2,2.72687261]
[1753192222999,0.136,3667.5,3667.2,2.72680731]
[1753192223331,17.22666037,3667.5,3666.8,0.8209]
[1753192223517,0.5646,3667.4,3666.7,0.136]
[1753192223829,0.136,3667.1,3666.7,2.72718006]
[1753192224002,0.136,3667.1,3666.6,2.72727472]
[1753192224409,0.136,3667.1,3666.5,0.136]
[1753192224605,2.72702481,3667.0,3666.3,0.8246]
[1753192224805,0.136,3666.7,3666.4,2.72747108]
[1753192225012,0.136,3666.7,3666.3,0.85187545]
[1753192225311,14.5,3667.5,3666.6,2.72724798]
[1753192225515,2.86288311,3667.2,3666.6,0.136]
[1753192225817,0.136,3667.2,3666.6,0.136]
[1753192226024,0.136,3666.8,3666.3,0.8246]
[1753192226218,2.72726944,3666.7,3666.3,0.8246]
[1753192226627,0.5646,3666.8,3666.3,0.8246]
[1753192226839,3.29183217,3666.8,3666.3,0.8246]
[1753192227134,3.29183217,3666.8,3666.2,4.542]
[1753192227135,3.15591686,3666.7,3666.2,4.542]
[1753192227337,2.72735811,3666.6,3666.2,0.136]
[1753192227532,3.15587462,3666.7,3666.2,0.136]
[1753192227905,0.136,3666.8,3666.2,0.136]
[1753192228106,0.136,3666.8,3666.2,0.89346865]
[1753192228634,2.72724793,3666.7,3666.2,0.136]
[1753192228809,2.72740284,3666.5,3666.1,0.001]
[1753192229001,3.29195725,3666.6,3666.1,0.001]
[1753192229333,2.72744472,3666.5,3666.1,0.001]
[1753192229536,2.7275399,3666.4,3666.1,0.001]
[1753192229740,0.4286,3666.5,3666.1,0.001]
[1753192230233,2.72756349,3666.3,3666.1,0.001]
[1753192230544,0.136,3666.4,3666.1,0.001]
[1753192231037,0.136,3666.4,3666.3,2.72754548]
[1753192231237,0.136,3666.8,3666.2,2.86356268]
[1753192231424,17.22665492,3667.5,3666.4,0.55]
[1753192231425,17.2266768,3667.5,3666.4,0.55]
[1753192231623,0.136,3667.1,3666.6,0.136]
[1753192232008,0.5646,3667.1,3666.6,0.136]
[1753192232205,0.45577186,3667.0,3666.1,0.001]
[1753192232433,0.136,3666.9,3666.3,0.136]
[1753192232650,14.5,3667.5,3666.5,0.55]
[1753192232846,0.4306,3668.6,3667.2,0.55]
[1753192233154,0.136,3668.2,3667.5,0.55]
[1753192233307,2.72598408,3668.4,3667.9,0.8302]
[1753192233508,0.5646,3668.4,3667.9,0.8302]
[1753192233707,0.5646,3668.4,3667.9,3.55650631]
[1753192233933,2.72607828,3668.3,3667.9,0.8302]
[1753192234242,0.136,3668.4,3667.9,0.8302]
[1753192234444,17.22596124,3668.5,3666.5,0.7601]
[1753192234445,2.72661531,3667.6,3666.5,0.7601]
[1753192234743,2.72658344,3667.6,3667.1,0.136]
[1753192234940,0.136,3667.7,3667.2,4.71]
[1753192235144,0.136,3667.7,3667.3,4.71]
[1753192235328,14.5,3668.0,3667.3,4.71]
[1753192235329,2.72643407,3667.8,3667.3,4.846]
[1753192235647,0.4286,3667.8,3667.3,4.846]
[1753192235848,0.136,3667.9,3667.5,0.7719]
[1753192236021,4.42,3668.5,3667.6,0.55]
[1753192236235,0.136,3668.4,3668.0,2.72625492]
[1753192236419,14.5,3668.3,3668.0,2.72623106]
[1753192236625,0.136,3668.4,3667.9,2.72633028]
[1753192237132,0.136,3668.4,3667.8,0.55]
[1753192237336,0.136,3668.4,3668.2,2.72612299]
[1753192237535,0.002,3668.6,3668.1,0.136]
[1753192237744,2.72598408,3668.4,3667.7,4.71]
[1753192237933,2.72626612,3668.1,3667.7,4.846]
[1753192238162,0.136,3667.7,3667.1,0.8318]
[1753192238360,0.45577186,3667.6,3666.9,2.72708677]
[1753192238655,0.7685,3668.2,3667.4,2.72670757]
[1753192238954,0.136,3668.0,3667.4,0.136]
[1753192239160,14.5,3667.9,3667.2,2.72680176]
[1753192239360,2.72650434,3667.7,3667.2,0.136]
[1753192239513,0.16317186,3667.8,3667.2,0.136]
[1753192239712,2.7266346,3667.6,3667.2,0.136]
[1753192239935,0.136,3667.8,3667.2,0.136]
[1753192240136,0.136,3667.8,3667.2,2.86285991]
[1753192240137,2.86243474,3667.8,3667.2,2.86285991]
[1753192240320,0.136,3667.8,3667.3,2.72678452]
[1753192240533,7.14706041,3668.3,3667.3,3.27673366]
[1753192240857,0.136,3667.7,3667.1,0.136]
[1753192241067,2.72662495,3667.6,3667.1,0.136]
[1753192241351,14.5,3668.1,3666.9,4.421]
[1753192241352,0.45577186,3667.5,3666.9,4.421]
[1753192241553,0.45577186,3667.5,3666.3,0.7695]
[1753192241851,3.45577186,3667.5,3666.1,0.001]
[1753192242050,0.136,3666.6,3666.1,4.001]
[1753192242235,2.72708939,3667.0,3666.2,0.49397619]
[1753192242436,0.02717186,3666.9,3666.4,0.136]
[1753192242619,2.72709918,3666.9,3666.4,0.136]
[1753192242820,0.136,3667.0,3666.5,0.55]
[1753192243015,0.136,3667.3,3666.7,2.86324246]
[1753192243229,14.5,3667.4,3667.0,0.55]
[1753192243433,0.136,3667.7,3667.2,0.55]
[1753192243764,0.136,3668.3,3667.8,0.55]
[1753192243917,0.002,3668.6,3667.8,0.55]
[1753192243918,0.002,3668.6,3668.1,0.55]
[1753192244125,0.002,3668.6,3668.4,2.72593071]
[1753192244357,0.002,3668.6,3668.4,2.72592184]
[1753192244561,0.002,3668.6,3668.4,2.72597356]
[1753192244761,0.002,3668.6,3668.4,2.72597059]
[1753192244960,0.002,3668.6,3668.3,0.136]
[1753192245268,0.002,3668.6,3668.5,3.27590977]
[1753192245444,0.002,3668.6,3668.5,4.9592558]
[1753192245623,0.002,3668.6,3668.5,5.4259558]
[1753192246149,0.002,3668.6,3668.5,5.39869671]
[1753192246345,0.002,3668.6,3668.5,1.65608694]
[1753192246523,0.002,3668.6,3668.5,2.86190977]
[1753192246720,0.002,3668.6,3668.5,0.136]
[1753192247047,0.002,3668.6,3668.4,2.7259547]
[1753192247248,0.002,3668.6,3668.5,2.72590977]
[1753192247448,0.002,3668.6,3668.5,0.136]
[1753192247803,0.002,3668.6,3668.2,0.136]
[1753192248058,0.4387,3668.5,3668.2,0.136]
[1753192248366,2.72592027,3668.5,3668.2,0.136]
[1753192248529,0.136,3668.4,3668.3,0.25401944]
[1753192248727,3.30068408,3668.4,3668.3,0.25401944]
[1753192249072,3.32785594,3668.4,3668.3,0.25401944]
[1753192249557,3.30068408,3668.4,3668.3,0.25401944]
[1753192249733,3.98164924,3668.4,3668.3,0.25401944]
[1753192249933,2.86198408,3668.4,3668.3,0.25401944]
[1753192250133,3.30068408,3668.4,3668.3,0.25401944]
[1753192250563,3.30068408,3668.4,3668.3,0.25404004]
[1753192251076,3.32785594,3668.4,3668.3,0.25404004]